[Event "*** SCC Grand Prix: Titled Tuesday Blitz"]
[Site "Chess.com"]
[Date "2020.08.11"]
[Round "8"]
[White "Nemsko"]
[Black "Dinamo81"]
[Result "1-0"]
[WhiteElo "2356"]
[BlackElo "2605"]
[TimeControl "180+1"]
[EndTime "11:35:04 PDT"]
[Termination "Nemsko won on time"]

1. e4 {[%clk 0:03:00.9]} 1... e6 {[%clk 0:02:53.5]} 2. d4 {[%clk 0:03:00.8]}
2... d5 {[%clk 0:02:53.9]} 3. Nc3 {[%clk 0:03:01.2]} 3... Bb4 {[%clk 0:02:53.1]}
4. e5 {[%clk 0:03:01.5]} 4... Ne7 {[%clk 0:02:52.6]} 5. a3 {[%clk 0:03:00.6]}
5... Bxc3+ {[%clk 0:02:50.2]} 6. bxc3 {[%clk 0:03:01.5]} 6... b6 {[%clk
0:02:42.9]} 7. Bb5+ {[%clk 0:02:59.3]} 7... c6 {[%clk 0:02:37.7]} 8. Bd3 {[%clk
0:02:59.5]} 8... Ba6 {[%clk 0:02:37]} 9. h4 {[%clk 0:03:00.2]} 9... Bxd3 {[%clk
0:02:31.3]} 10. Qxd3 {[%clk 0:03:01.1]} 10... c5 {[%clk 0:02:27.7]} 11. h5
{[%clk 0:03:01.4]} 11... h6 {[%clk 0:02:26.9]} 12. Rh4 {[%clk 0:02:59.6]} 12...
Qd7 {[%clk 0:02:02.4]} 13. Rf4 {[%clk 0:02:55.7]} 13... Nbc6 {[%clk 0:01:59.1]}
14. g4 {[%clk 0:02:47.9]} 14... Na5 {[%clk 0:01:45]} 15. Qf3 {[%clk 0:02:45.7]}
15... Rf8 {[%clk 0:01:26.9]} 16. Be3 {[%clk 0:02:34.2]} 16... cxd4 {[%clk
0:01:21.8]} 17. cxd4 {[%clk 0:02:30.7]} 17... Rc8 {[%clk 0:01:18.7]} 18. Rc1
{[%clk 0:02:27.4]} 18... Nc4 {[%clk 0:01:16.7]} 19. Bd2 {[%clk 0:02:12.5]} 19...
a5 {[%clk 0:01:07.4]} 20. Ne2 {[%clk 0:02:05.7]} 20... Qa4 {[%clk 0:01:03.4]}
21. Qb3 {[%clk 0:02:02.9]} 21... Qxa3 {[%clk 0:00:50.6]} 22. Nc3 {[%clk
0:01:36.1]} 22... Nc6 {[%clk 0:00:32]} 23. Nb5 {[%clk 0:01:29.5]} 23... Qe7
{[%clk 0:00:27.1]} 24. Be3 {[%clk 0:01:06.8]} 24... Kd7 {[%clk 0:00:23]} 25. Rf3
{[%clk 0:01:05.2]} 25... f6 {[%clk 0:00:22]} 26. exf6 {[%clk 0:00:53.5]} 26...
Rxf6 {[%clk 0:00:22.9]} 27. Rg3 {[%clk 0:00:48.8]} 27... Rf7 {[%clk 0:00:18.8]}
28. Ke2 {[%clk 0:00:46.4]} 28... Qb4 {[%clk 0:00:13.9]} 29. Qxb4 {[%clk
0:00:42.4]} 29... Nxb4 {[%clk 0:00:14.8]} 30. c3 {[%clk 0:00:42]} 30... Nc6
{[%clk 0:00:14.5]} 31. f4 {[%clk 0:00:40.1]} 31... Ne7 {[%clk 0:00:13.2]} 32.
Rf3 {[%clk 0:00:37.3]} 32... Nd6 {[%clk 0:00:11.4]} 33. Nxd6 {[%clk 0:00:34.3]}
33... Kxd6 {[%clk 0:00:12.3]} 34. Kd3 {[%clk 0:00:34.7]} 34... b5 {[%clk
0:00:10.9]} 35. Rb1 {[%clk 0:00:34.6]} 35... Kc6 {[%clk 0:00:10]} 36. Rf2 {[%clk
0:00:33.2]} 36... a4 {[%clk 0:00:09.7]} 37. Rfb2 {[%clk 0:00:33.4]} 37... Rb8
{[%clk 0:00:09.7]} 38. Rf2 {[%clk 0:00:31]} 38... Nc8 {[%clk 0:00:08.4]} 39. Bc1
{[%clk 0:00:31.5]} 39... Nd6 {[%clk 0:00:07.9]} 40. Ba3 {[%clk 0:00:31.1]} 40...
Nc4 {[%clk 0:00:08]} 41. Bb4 {[%clk 0:00:31.3]} 41... Rbb7 {[%clk 0:00:07.5]}
42. Rbf1 {[%clk 0:00:28.2]} 42... Rf6 {[%clk 0:00:07.7]} 43. g5 {[%clk
0:00:27.7]} 43... Rf5 {[%clk 0:00:08]} 44. Re1 {[%clk 0:00:22.5]} 44... Kd7
{[%clk 0:00:05.3]} 45. gxh6 {[%clk 0:00:21]} 45... gxh6 {[%clk 0:00:06.2]} 46.
Rg2 {[%clk 0:00:21.6]} 46... Rxh5 {[%clk 0:00:04.3]} 47. Rg7+ {[%clk 0:00:21.8]}
47... Kc8 {[%clk 0:00:04.7]} 48. Rg8+ {[%clk 0:00:20.8]} 48... Kd7 {[%clk
0:00:04.4]} 49. Rg7+ {[%clk 0:00:21.1]} 49... Kc8 {[%clk 0:00:04.5]} 50. Rg8+
{[%clk 0:00:21.5]} 50... Kc7 {[%clk 0:00:04.3]} 51. Rxe6 {[%clk 0:00:19.7]}
51... Rh3+ {[%clk 0:00:04.7]} 52. Ke2 {[%clk 0:00:18.5]} 52... Rh2+ {[%clk
0:00:03.3]} 53. Kf3 {[%clk 0:00:18.5]} 53... Rh3+ {[%clk 0:00:02]} 54. Kg4
{[%clk 0:00:18.5]} 54... Re3 {[%clk 0:00:02.5]} 55. Rg7+ {[%clk 0:00:17.7]}
55... Kc8 {[%clk 0:00:02.5]} 56. Reg6 {[%clk 0:00:15.2]} 56... Rxg7 {[%clk
0:00:01.4]} 57. Rxg7 {[%clk 0:00:16.1]} 57... Re8 {[%clk 0:00:01.5]} 58. Rg6
{[%clk 0:00:15.3]} 1-0

[Event "*** SCC Grand Prix: Titled Tuesday Blitz"]
[Site "Chess.com"]
[Date "2020.08.11"]
[Round "8"]
[White "KatarinaOstojic"]
[Black "Gulkov_Igor"]
[Result "0-1"]
[WhiteElo "2237"]
[BlackElo "2411"]
[TimeControl "180+1"]
[EndTime "11:35:04 PDT"]
[Termination "Gulkov_Igor won by resignation"]

1. d4 {[%clk 0:03:00.9]} 1... Nf6 {[%clk 0:02:59.3]} 2. Nf3 {[%clk 0:03:00.9]}
2... e6 {[%clk 0:02:59.1]} 3. c4 {[%clk 0:03:00.7]} 3... Bb4+ {[%clk 0:02:57.4]}
4. Bd2 {[%clk 0:03:00.7]} 4... Qe7 {[%clk 0:02:57.3]} 5. a3 {[%clk 0:03:00]}
5... Bxd2+ {[%clk 0:02:56.4]} 6. Nbxd2 {[%clk 0:03:00.9]} 6... d6 {[%clk
0:02:56.4]} 7. e3 {[%clk 0:02:59.6]} 7... e5 {[%clk 0:02:55.6]} 8. Be2 {[%clk
0:02:57.1]} 8... O-O {[%clk 0:02:54.9]} 9. O-O {[%clk 0:02:56]} 9... b6 {[%clk
0:02:54.3]} 10. Qc2 {[%clk 0:02:50.7]} 10... Bb7 {[%clk 0:02:54.2]} 11. Rfe1
{[%clk 0:02:49.3]} 11... Nbd7 {[%clk 0:02:53.8]} 12. d5 {[%clk 0:02:45.4]} 12...
a5 {[%clk 0:02:46.5]} 13. b4 {[%clk 0:02:44.3]} 13... axb4 {[%clk 0:02:44]} 14.
axb4 {[%clk 0:02:45.2]} 14... b5 {[%clk 0:02:44.2]} 15. e4 {[%clk 0:02:38.9]}
15... bxc4 {[%clk 0:02:40.3]} 16. Nxc4 {[%clk 0:02:34.8]} 16... Rxa1 {[%clk
0:02:20.8]} 17. Rxa1 {[%clk 0:02:35.7]} 17... Ra8 {[%clk 0:02:20.6]} 18. Rxa8+
{[%clk 0:02:32.9]} 18... Bxa8 {[%clk 0:02:20.4]} 19. Qa4 {[%clk 0:02:21.9]}
19... Qd8 {[%clk 0:02:19.9]} 20. Nfd2 {[%clk 0:02:18.4]} 20... Qb8 {[%clk
0:02:02]} 21. h3 {[%clk 0:01:52]} 21... h6 {[%clk 0:01:55.5]} 22. Na5 {[%clk
0:01:40.9]} 22... Nb6 {[%clk 0:01:54.1]} 23. Qb5 {[%clk 0:01:39.1]} 23... Qe8
{[%clk 0:01:52.2]} 24. Qxe8+ {[%clk 0:01:25.2]} 24... Nxe8 {[%clk 0:01:51.6]}
25. Bb5 {[%clk 0:01:26.1]} 25... Nf6 {[%clk 0:01:48.5]} 26. f3 {[%clk
0:01:20.9]} 26... Kf8 {[%clk 0:01:47.8]} 27. Nc6 {[%clk 0:01:18.3]} 27... Bxc6
{[%clk 0:01:46.6]} 28. Bxc6 {[%clk 0:01:19.2]} 28... Nh5 {[%clk 0:01:40]} 29.
Nb1 {[%clk 0:01:08.2]} 29... Ke7 {[%clk 0:01:37.3]} 30. Nc3 {[%clk 0:01:08.4]}
30... Nf4 {[%clk 0:01:32.9]} 31. Bb5 {[%clk 0:01:00.6]} 31... g5 {[%clk
0:01:29.7]} 32. Ne2 {[%clk 0:00:59.9]} 32... Nxe2+ {[%clk 0:01:28.7]} 33. Bxe2
{[%clk 0:01:00.8]} 33... f5 {[%clk 0:01:28.2]} 34. Kf2 {[%clk 0:00:58]} 34...
Kf6 {[%clk 0:01:27.1]} 35. Ke3 {[%clk 0:00:57.2]} 35... f4+ {[%clk 0:01:18.5]}
36. Kd3 {[%clk 0:00:56.6]} 36... Kg6 {[%clk 0:01:13.6]} 37. Kc3 {[%clk
0:00:51.8]} 37... Kh5 {[%clk 0:01:13.6]} 38. Bf1 {[%clk 0:00:36.8]} 38... Kh4
{[%clk 0:01:13.6]} 39. Kd2 {[%clk 0:00:37.1]} 39... Kg3 {[%clk 0:01:13.8]} 40.
Ke1 {[%clk 0:00:37.5]} 40... Na4 {[%clk 0:00:59.2]} 41. Bb5 {[%clk 0:00:31.7]}
41... Nc3 {[%clk 0:00:58.7]} 42. Bf1 {[%clk 0:00:29.6]} 42... h5 {[%clk
0:00:56.3]} 43. Kd2 {[%clk 0:00:25.7]} 43... Nxe4+ {[%clk 0:00:43.9]} 44. fxe4
{[%clk 0:00:25.3]} 44... Kf2 {[%clk 0:00:37.9]} 45. Be2 {[%clk 0:00:24.7]} 45...
Kxg2 {[%clk 0:00:38.1]} 46. Bxh5 {[%clk 0:00:24.6]} 46... Kxh3 {[%clk
0:00:35.3]} 47. Ke2 {[%clk 0:00:24.4]} 47... Kg3 {[%clk 0:00:34.4]} 48. Kf1
{[%clk 0:00:15.4]} 48... g4 {[%clk 0:00:34.5]} 49. Kg1 {[%clk 0:00:14.8]} 49...
f3 {[%clk 0:00:34.6]} 50. Kf1 {[%clk 0:00:15.2]} 50... Kf4 {[%clk 0:00:34.2]}
51. Kf2 {[%clk 0:00:14.6]} 51... g3+ {[%clk 0:00:33.9]} 52. Kf1 {[%clk
0:00:14.9]} 52... Kxe4 {[%clk 0:00:34.1]} 53. Bf7 {[%clk 0:00:15.6]} 53... Ke3
{[%clk 0:00:33.7]} 54. Bh5 {[%clk 0:00:14.1]} 54... e4 {[%clk 0:00:33.5]} 55. b5
{[%clk 0:00:13.7]} 55... Kf4 {[%clk 0:00:33.1]} 56. Bg6 {[%clk 0:00:13]} 56...
e3 {[%clk 0:00:33]} 57. Bd3 {[%clk 0:00:11.2]} 57... g2+ {[%clk 0:00:33]} 58.
Kg1 {[%clk 0:00:11.5]} 58... Kg3 {[%clk 0:00:33.1]} 0-1

[Event "*** SCC Grand Prix: Titled Tuesday Blitz"]
[Site "Chess.com"]
[Date "2020.08.11"]
[Round "8"]
[White "MasterKroket"]
[Black "Shivagami"]
[Result "1-0"]
[WhiteElo "2415"]
[BlackElo "2236"]
[TimeControl "180+1"]
[EndTime "11:35:06 PDT"]
[Termination "MasterKroket won on time"]

1. d4 {[%clk 0:03:00.9]} 1... Nf6 {[%clk 0:02:57.7]} 2. c4 {[%clk 0:03:01.4]}
2... c5 {[%clk 0:02:55.3]} 3. d5 {[%clk 0:03:00.5]} 3... e6 {[%clk 0:02:51.3]}
4. Nc3 {[%clk 0:03:00.4]} 4... exd5 {[%clk 0:02:51.4]} 5. cxd5 {[%clk
0:03:01.3]} 5... d6 {[%clk 0:02:51.6]} 6. e4 {[%clk 0:03:01.8]} 6... a6 {[%clk
0:02:51.8]} 7. a4 {[%clk 0:03:01.3]} 7... g6 {[%clk 0:02:52.3]} 8. Nf3 {[%clk
0:03:01.4]} 8... Bg7 {[%clk 0:02:52]} 9. h3 {[%clk 0:03:01.9]} 9... O-O {[%clk
0:02:51.3]} 10. Bd3 {[%clk 0:03:02.5]} 10... Nbd7 {[%clk 0:02:50.4]} 11. O-O
{[%clk 0:03:02.4]} 11... Rb8 {[%clk 0:02:50.4]} 12. Re1 {[%clk 0:02:57.3]} 12...
Ne8 {[%clk 0:02:49.8]} 13. Bg5 {[%clk 0:02:54.7]} 13... f6 {[%clk 0:02:46.3]}
14. Bf4 {[%clk 0:02:54.2]} 14... Qe7 {[%clk 0:02:45.4]} 15. Nd2 {[%clk
0:02:49.2]} 15... Ne5 {[%clk 0:02:43.5]} 16. Bf1 {[%clk 0:02:49.6]} 16... Nc7
{[%clk 0:02:42.3]} 17. Bh2 {[%clk 0:02:47.5]} 17... b5 {[%clk 0:02:41.2]} 18. f4
{[%clk 0:02:47.7]} 18... Nd7 {[%clk 0:02:38.5]} 19. axb5 {[%clk 0:02:47.8]}
19... Nxb5 {[%clk 0:02:32.3]} 20. Nxb5 {[%clk 0:02:33.3]} 20... axb5 {[%clk
0:02:30.7]} 21. Ra7 {[%clk 0:02:33.8]} 21... c4 {[%clk 0:02:24.2]} 22. e5 {[%clk
0:02:23.3]} 22... fxe5 {[%clk 0:02:13.8]} 23. fxe5 {[%clk 0:02:23.1]} 23... Qd8
{[%clk 0:02:14]} 24. Rxd7 {[%clk 0:02:02.5]} 24... Qxd7 {[%clk 0:02:10.9]} 25.
e6 {[%clk 0:02:03]} 25... Qa7+ {[%clk 0:02:10]} 26. Kh1 {[%clk 0:02:03.6]} 26...
Qd4 {[%clk 0:01:18.7]} 27. Ne4 {[%clk 0:01:58.2]} 27... Rxf1+ {[%clk 0:01:03.8]}
28. Rxf1 {[%clk 0:01:53.8]} 28... Qxe4 {[%clk 0:01:04.2]} 29. Bxd6 {[%clk
0:01:54]} 29... Be5 {[%clk 0:00:55.3]} 30. e7 {[%clk 0:01:45.2]} 30... Bxh3
{[%clk 0:00:44.9]} 31. Rf8+ {[%clk 0:01:18.2]} 31... Kg7 {[%clk 0:00:43.4]} 32.
Bxe5+ {[%clk 0:01:17.9]} 32... Qxe5 {[%clk 0:00:40]} 33. Rxb8 {[%clk 0:01:13.4]}
33... Bxg2+ {[%clk 0:00:13.6]} 34. Kxg2 {[%clk 0:01:08.1]} 34... Qg5+ {[%clk
0:00:09.5]} 35. Kf2 {[%clk 0:00:59.3]} 35... Qh4+ {[%clk 0:00:07.8]} 36. Kg2
{[%clk 0:00:49.2]} 36... Qg5+ {[%clk 0:00:07.4]} 37. Kh3 {[%clk 0:00:44.2]}
37... Qf5+ {[%clk 0:00:06.2]} 38. Qg4 {[%clk 0:00:43.4]} 38... Qf1+ {[%clk
0:00:06.2]} 39. Kh2 {[%clk 0:00:35.1]} 39... Qf2+ {[%clk 0:00:06.1]} 40. Kh3
{[%clk 0:00:31.3]} 40... Qf1+ {[%clk 0:00:06.1]} 41. Qg2 {[%clk 0:00:30.9]}
41... Qf5+ {[%clk 0:00:05.4]} 42. Kh2 {[%clk 0:00:31.3]} 42... Qh5+ {[%clk
0:00:03.4]} 43. Kg1 {[%clk 0:00:29.8]} 43... Qd1+ {[%clk 0:00:03.6]} 44. Kf2
{[%clk 0:00:30.2]} 44... Qd2+ {[%clk 0:00:03.7]} 45. Kg3 {[%clk 0:00:29.9]}
45... Qg5+ {[%clk 0:00:03.6]} 46. Kh2 {[%clk 0:00:29.7]} 46... Qh4+ {[%clk
0:00:03.9]} 47. Kg1 {[%clk 0:00:27.7]} 47... Qe1+ {[%clk 0:00:04]} 48. Qf1
{[%clk 0:00:28]} 48... Qg3+ {[%clk 0:00:04.1]} 49. Kh1 {[%clk 0:00:28.6]} 49...
Qh4+ {[%clk 0:00:04.2]} 50. Kg2 {[%clk 0:00:29.3]} 50... Qg4+ {[%clk 0:00:04.4]}
51. Kf2 {[%clk 0:00:29.4]} 51... Qf4+ {[%clk 0:00:04.8]} 52. Ke2 {[%clk
0:00:27.2]} 52... Qe4+ {[%clk 0:00:04.6]} 53. Kd2 {[%clk 0:00:25]} 53... Qd4+
{[%clk 0:00:04.3]} 54. Kc2 {[%clk 0:00:24.3]} 54... Qe4+ {[%clk 0:00:04.6]} 55.
Kc1 {[%clk 0:00:23.9]} 55... Qe3+ {[%clk 0:00:02.6]} 56. Kb1 {[%clk 0:00:24.2]}
56... Qe4+ {[%clk 0:00:03]} 57. Ka1 {[%clk 0:00:24.2]} 1-0

[Event "*** SCC Grand Prix: Titled Tuesday Blitz"]
[Site "Chess.com"]
[Date "2020.08.11"]
[Round "8"]
[White "youngKID"]
[Black "Grischuk"]
[Result "1-0"]
[WhiteElo "2795"]
[BlackElo "3027"]
[TimeControl "180+1"]
[EndTime "11:35:07 PDT"]
[Termination "youngKID won on time"]

1. e4 {[%clk 0:03:00.9]} 1... e5 {[%clk 0:02:59.5]} 2. Nf3 {[%clk 0:03:01]} 2...
Nc6 {[%clk 0:02:59.7]} 3. Bb5 {[%clk 0:03:01]} 3... Nf6 {[%clk 0:02:59.6]} 4.
O-O {[%clk 0:02:59.9]} 4... Nxe4 {[%clk 0:02:59.7]} 5. d4 {[%clk 0:03:00]} 5...
Nd6 {[%clk 0:02:59.7]} 6. Bxc6 {[%clk 0:03:00.6]} 6... dxc6 {[%clk 0:03:00.6]}
7. dxe5 {[%clk 0:03:01]} 7... Nf5 {[%clk 0:03:01.2]} 8. Qxd8+ {[%clk 0:03:01.7]}
8... Kxd8 {[%clk 0:03:02.1]} 9. Nc3 {[%clk 0:03:01.1]} 9... Bd7 {[%clk
0:02:54.5]} 10. Rd1 {[%clk 0:02:59.8]} 10... Kc8 {[%clk 0:02:54.2]} 11. h3
{[%clk 0:02:56.1]} 11... h6 {[%clk 0:02:53.8]} 12. b3 {[%clk 0:02:49.5]} 12...
b6 {[%clk 0:02:52.5]} 13. a4 {[%clk 0:02:32.9]} 13... a5 {[%clk 0:02:51.6]} 14.
Bb2 {[%clk 0:02:09.8]} 14... Ne7 {[%clk 0:02:41.2]} 15. Rd2 {[%clk 0:02:00.3]}
15... c5 {[%clk 0:02:15.8]} 16. Rad1 {[%clk 0:01:38]} 16... Be6 {[%clk 0:02:15]}
17. Ne2 {[%clk 0:01:29]} 17... Ng6 {[%clk 0:02:06.6]} 18. h4 {[%clk 0:01:18.4]}
18... Be7 {[%clk 0:01:45.9]} 19. h5 {[%clk 0:01:17.7]} 19... Nf8 {[%clk
0:01:46.5]} 20. Nf4 {[%clk 0:00:53.5]} 20... Bg4 {[%clk 0:01:29.5]} 21. Nd5
{[%clk 0:00:21.7]} 21... Bg5 {[%clk 0:01:26.8]} 22. Nxg5 {[%clk 0:00:22]} 22...
hxg5 {[%clk 0:01:27.7]} 23. f3 {[%clk 0:00:16.6]} 23... Be6 {[%clk 0:01:06.8]}
24. g4 {[%clk 0:00:14.6]} 24... Kb7 {[%clk 0:01:06]} 25. c4 {[%clk 0:00:11.2]}
25... g6 {[%clk 0:00:53.9]} 26. Nf6 {[%clk 0:00:10.5]} 26... Nh7 {[%clk
0:00:17.2]} 27. hxg6 {[%clk 0:00:08.9]} 27... fxg6 {[%clk 0:00:12.6]} 28. Ne4
{[%clk 0:00:09.2]} 28... Raf8 {[%clk 0:00:10.1]} 29. Kg2 {[%clk 0:00:08.5]}
29... Rf7 {[%clk 0:00:08.9]} 30. Rd8 {[%clk 0:00:08]} 30... Nf8 {[%clk
0:00:07.7]} 31. Nxg5 {[%clk 0:00:07.3]} 31... Re7 {[%clk 0:00:06.7]} 32. Nxe6
{[%clk 0:00:05.9]} 32... Rxe6 {[%clk 0:00:07.6]} 33. f4 {[%clk 0:00:04.7]} 33...
Re7 {[%clk 0:00:07]} 34. Kg3 {[%clk 0:00:04.5]} 34... Reh7 {[%clk 0:00:07]} 35.
Kf3 {[%clk 0:00:03.2]} 35... Rh3+ {[%clk 0:00:06.6]} 36. Ke4 {[%clk 0:00:03.6]}
36... Rxb3 {[%clk 0:00:07.1]} 37. Bc1 {[%clk 0:00:03]} 37... Rh2 {[%clk
0:00:07.2]} 38. f5 {[%clk 0:00:02.8]} 38... gxf5+ {[%clk 0:00:06.3]} 39. gxf5
{[%clk 0:00:03.2]} 39... Rh4+ {[%clk 0:00:06]} 40. Kd5 {[%clk 0:00:02.4]} 40...
Nh7 {[%clk 0:00:04.8]} 41. e6 {[%clk 0:00:01.7]} 41... Nf6+ {[%clk 0:00:04.2]}
42. Ke5 {[%clk 0:00:01.8]} 42... Ng4+ {[%clk 0:00:04.4]} 43. Kf4 {[%clk
0:00:02.4]} 43... Nf2+ {[%clk 0:00:04.5]} 44. Kg5 {[%clk 0:00:02.9]} 44... Rg4+
{[%clk 0:00:04.8]} 45. Kf6 {[%clk 0:00:03.3]} 45... Ne4+ {[%clk 0:00:04.3]} 46.
Kf7 {[%clk 0:00:02.9]} 46... Rf3 {[%clk 0:00:04.5]} 47. R8d5 {[%clk 0:00:01.9]}
47... Rh3 {[%clk 0:00:03.4]} 48. e7 {[%clk 0:00:01.4]} 48... Rh7+ {[%clk
0:00:03.4]} 49. Ke6 {[%clk 0:00:01.9]} 49... Rg8 {[%clk 0:00:02.5]} 50. Rd8
{[%clk 0:00:02]} 1-0

[Event "*** SCC Grand Prix: Titled Tuesday Blitz"]
[Site "Chess.com"]
[Date "2020.08.11"]
[Round "8"]
[White "AvitalBor"]
[Black "SergeyKarjakin"]
[Result "1/2-1/2"]
[WhiteElo "2837"]
[BlackElo "2981"]
[TimeControl "180+1"]
[EndTime "11:35:08 PDT"]
[Termination "Game drawn by repetition"]

1. e4 {[%clk 0:03:00.9]} 1... c5 {[%clk 0:02:56.3]} 2. c3 {[%clk 0:03:01.1]}
2... Nf6 {[%clk 0:02:54.5]} 3. e5 {[%clk 0:03:01.1]} 3... Nd5 {[%clk 0:02:54.7]}
4. d4 {[%clk 0:03:02]} 4... cxd4 {[%clk 0:02:55.1]} 5. cxd4 {[%clk 0:03:02.9]}
5... d6 {[%clk 0:02:53.1]} 6. Nf3 {[%clk 0:03:03.4]} 6... Nc6 {[%clk 0:02:53.3]}
7. Bc4 {[%clk 0:03:03.9]} 7... Nb6 {[%clk 0:02:53.2]} 8. Bb5 {[%clk 0:03:04.1]}
8... dxe5 {[%clk 0:02:53.5]} 9. Nxe5 {[%clk 0:03:05]} 9... Bd7 {[%clk 0:02:54]}
10. Nxd7 {[%clk 0:03:05.6]} 10... Qxd7 {[%clk 0:02:54.9]} 11. Nc3 {[%clk
0:03:06.1]} 11... e6 {[%clk 0:02:52.4]} 12. O-O {[%clk 0:03:06.4]} 12... Rd8
{[%clk 0:02:52]} 13. Qg4 {[%clk 0:03:04.4]} 13... h5 {[%clk 0:02:38]} 14. Qh3
{[%clk 0:02:34.4]} 14... a6 {[%clk 0:02:31.6]} 15. Bxc6 {[%clk 0:02:33.9]} 15...
Qxc6 {[%clk 0:02:31.2]} 16. Rd1 {[%clk 0:02:33.6]} 16... Be7 {[%clk 0:02:28.7]}
17. Be3 {[%clk 0:02:31.5]} 17... Nd5 {[%clk 0:02:23.2]} 18. Rac1 {[%clk
0:02:30.8]} 18... Nxc3 {[%clk 0:02:18.3]} 19. Rxc3 {[%clk 0:02:30.2]} 19... Qd5
{[%clk 0:02:15.6]} 20. Rc7 {[%clk 0:02:23.9]} 20... Bd6 {[%clk 0:02:11.5]} 21.
Rcc1 {[%clk 0:02:07.7]} 21... O-O {[%clk 0:02:11.8]} 22. b3 {[%clk 0:02:07.9]}
22... Rc8 {[%clk 0:02:03]} 23. Qh4 {[%clk 0:02:00.8]} 23... Ba3 {[%clk
0:01:47.5]} 24. Rxc8 {[%clk 0:01:59.2]} 24... Rxc8 {[%clk 0:01:48.4]} 25. h3
{[%clk 0:01:59.6]} 25... Rc2 {[%clk 0:01:36.8]} 26. Rd2 {[%clk 0:01:36.9]} 26...
Rc1+ {[%clk 0:01:28.6]} 27. Kh2 {[%clk 0:01:36.8]} 27... Bd6+ {[%clk 0:01:29]}
28. f4 {[%clk 0:01:27.5]} 28... Qe4 {[%clk 0:00:55.3]} 29. Re2 {[%clk
0:01:05.1]} 29... Rc3 {[%clk 0:00:51.3]} 30. Qd8+ {[%clk 0:00:57.6]} 30... Bf8
{[%clk 0:00:40.7]} 31. Bd2 {[%clk 0:00:49.3]} 31... Qxe2 {[%clk 0:00:16.4]} 32.
Bxc3 {[%clk 0:00:49.1]} 32... Qb5 {[%clk 0:00:17.3]} 33. Qb8 {[%clk 0:00:29.4]}
33... h4 {[%clk 0:00:11.5]} 34. Be1 {[%clk 0:00:25.9]} 34... f6 {[%clk
0:00:03.1]} 35. Bxh4 {[%clk 0:00:22.7]} 35... Qd5 {[%clk 0:00:02.9]} 36. Qe8
{[%clk 0:00:16.3]} 36... Qe4 {[%clk 0:00:01.5]} 37. Bg3 {[%clk 0:00:15.4]} 37...
f5 {[%clk 0:00:01.8]} 38. Qd7 {[%clk 0:00:14.1]} 38... Kh7 {[%clk 0:00:01.2]}
39. Qe8 {[%clk 0:00:13.7]} 39... Bb4 {[%clk 0:00:01.7]} 40. Qh5+ {[%clk
0:00:13.7]} 40... Kg8 {[%clk 0:00:01.5]} 41. Qe8+ {[%clk 0:00:13.9]} 41... Kh7
{[%clk 0:00:02]} 42. h4 {[%clk 0:00:13.5]} 42... Bd2 {[%clk 0:00:01.5]} 43. Qh5+
{[%clk 0:00:07.7]} 43... Kg8 {[%clk 0:00:01.8]} 44. Qg5 {[%clk 0:00:04.7]} 44...
Qxd4 {[%clk 0:00:01.8]} 45. Qe7 {[%clk 0:00:03.9]} 45... Qe4 {[%clk 0:00:01.1]}
46. h5 {[%clk 0:00:02.8]} 46... Kh7 {[%clk 0:00:01.6]} 47. Qe8 {[%clk
0:00:03.1]} 47... Bxf4 {[%clk 0:00:01.1]} 48. Qg6+ {[%clk 0:00:03.4]} 48... Kh8
{[%clk 0:00:01.6]} 49. Qe8+ {[%clk 0:00:03.3]} 49... Kh7 {[%clk 0:00:02.2]} 50.
Qg6+ {[%clk 0:00:03.6]} 50... Kh8 {[%clk 0:00:02.6]} 51. Qe8+ {[%clk 0:00:03.8]}
51... Kh7 {[%clk 0:00:03]} 1/2-1/2

[Event "*** SCC Grand Prix: Titled Tuesday Blitz"]
[Site "Chess.com"]
[Date "2020.08.11"]
[Round "8"]
[White "secretsuperstar7"]
[Black "MasterSonnevanck23"]
[Result "1/2-1/2"]
[WhiteElo "2130"]
[BlackElo "2349"]
[TimeControl "180+1"]
[EndTime "11:35:08 PDT"]
[Termination "Game drawn by repetition"]

1. d4 {[%clk 0:03:00.9]} 1... Nf6 {[%clk 0:02:58.8]} 2. c4 {[%clk 0:02:46.5]}
2... e6 {[%clk 0:02:58.6]} 3. Nc3 {[%clk 0:02:46.3]} 3... Bb4 {[%clk 0:02:58.3]}
4. Bd2 {[%clk 0:02:45.8]} 4... O-O {[%clk 0:02:57.2]} 5. Nf3 {[%clk 0:02:45.2]}
5... c5 {[%clk 0:02:56.3]} 6. d5 {[%clk 0:02:40.9]} 6... d6 {[%clk 0:02:50.7]}
7. e3 {[%clk 0:02:35.5]} 7... Nbd7 {[%clk 0:02:50]} 8. a3 {[%clk 0:02:34.3]}
8... Bxc3 {[%clk 0:02:44.8]} 9. Bxc3 {[%clk 0:02:32.7]} 9... Nb6 {[%clk
0:02:43.9]} 10. dxe6 {[%clk 0:02:23.3]} 10... Bxe6 {[%clk 0:02:42.5]} 11. b3
{[%clk 0:02:19.8]} 11... d5 {[%clk 0:02:39.2]} 12. cxd5 {[%clk 0:02:17.9]} 12...
Nbxd5 {[%clk 0:02:36.4]} 13. Bb2 {[%clk 0:02:16.9]} 13... Ne4 {[%clk 0:02:16.4]}
14. Bd3 {[%clk 0:02:03.2]} 14... Qa5+ {[%clk 0:02:15.3]} 15. b4 {[%clk
0:02:03.1]} 15... cxb4 {[%clk 0:02:05.9]} 16. O-O {[%clk 0:02:02.2]} 16... Ndf6
{[%clk 0:01:40.5]} 17. axb4 {[%clk 0:01:45]} 17... Qh5 {[%clk 0:01:39.8]} 18.
Nd4 {[%clk 0:01:13.1]} 18... Qxd1 {[%clk 0:01:35.9]} 19. Rfxd1 {[%clk
0:01:12.3]} 19... Bd7 {[%clk 0:01:35.5]} 20. Nb5 {[%clk 0:01:05.5]} 20... Bxb5
{[%clk 0:01:21.8]} 21. Bxb5 {[%clk 0:01:00.9]} 21... a6 {[%clk 0:01:22]} 22. Bc4
{[%clk 0:00:53.3]} 22... Rfc8 {[%clk 0:01:15.8]} 23. Bb3 {[%clk 0:00:48.5]}
23... Rd8 {[%clk 0:01:10.8]} 24. f3 {[%clk 0:00:44.7]} 24... Nd2 {[%clk
0:01:02]} 25. Ba2 {[%clk 0:00:41.5]} 25... b5 {[%clk 0:01:01.7]} 26. Bc3 {[%clk
0:00:35.5]} 26... Nc4 {[%clk 0:00:58.7]} 27. Rxd8+ {[%clk 0:00:28.7]} 27... Rxd8
{[%clk 0:00:54.8]} 28. Bxc4 {[%clk 0:00:27.1]} 28... bxc4 {[%clk 0:00:54.8]} 29.
Bxf6 {[%clk 0:00:22.9]} 29... gxf6 {[%clk 0:00:53.3]} 30. Rxa6 {[%clk
0:00:22.3]} 30... Rd2 {[%clk 0:00:41]} 31. Rc6 {[%clk 0:00:19.1]} 31... Rc2
{[%clk 0:00:38.6]} 32. b5 {[%clk 0:00:19]} 32... Kg7 {[%clk 0:00:37.6]} 33. b6
{[%clk 0:00:18.5]} 33... Rb2 {[%clk 0:00:34.5]} 34. Rxc4 {[%clk 0:00:17.3]}
34... Rxb6 {[%clk 0:00:35]} 35. Kf2 {[%clk 0:00:16.8]} 35... Rb2+ {[%clk
0:00:32.3]} 36. Kg3 {[%clk 0:00:16.8]} 36... f5 {[%clk 0:00:31]} 37. Rc5 {[%clk
0:00:15.7]} 37... Kg6 {[%clk 0:00:30.6]} 38. Rc6+ {[%clk 0:00:14.3]} 38... f6
{[%clk 0:00:29.3]} 39. Rc8 {[%clk 0:00:12.3]} 39... Rb3 {[%clk 0:00:24.6]} 40.
Re8 {[%clk 0:00:07.3]} 40... Ra3 {[%clk 0:00:20.7]} 41. Re7 {[%clk 0:00:05.9]}
41... Rb3 {[%clk 0:00:18.1]} 42. h4 {[%clk 0:00:06]} 42... h5 {[%clk 0:00:16.8]}
43. Kf2 {[%clk 0:00:05.6]} 43... Rb2+ {[%clk 0:00:15.9]} 44. Kg3 {[%clk
0:00:05.6]} 44... Rb3 {[%clk 0:00:15.5]} 45. Kf4 {[%clk 0:00:05.3]} 45... Rb4+
{[%clk 0:00:15.2]} 46. e4 {[%clk 0:00:04.8]} 46... fxe4 {[%clk 0:00:14.7]} 47.
fxe4 {[%clk 0:00:03.3]} 47... Rb2 {[%clk 0:00:12.4]} 48. g3 {[%clk 0:00:02.5]}
48... Rf2+ {[%clk 0:00:11.5]} 49. Ke3 {[%clk 0:00:02.8]} 49... Rf1 {[%clk
0:00:10.3]} 50. e5 {[%clk 0:00:02.4]} 50... Re1+ {[%clk 0:00:03.9]} 51. Kf4
{[%clk 0:00:01.7]} 51... Rf1+ {[%clk 0:00:03.6]} 52. Ke3 {[%clk 0:00:01.5]}
52... Re1+ {[%clk 0:00:03.5]} 53. Kf4 {[%clk 0:00:01.8]} 53... Rf1+ {[%clk
0:00:03.6]} 54. Ke3 {[%clk 0:00:02.1]} 1/2-1/2